[Event "*** SCC Grand Prix: Titled Tuesday Blitz"]
[Site "Chess.com"]
[Date "2020.09.29"]
[Round "7"]
[White "paulrusan"]
[Black "ChessArchitect64"]
[Result "1-0"]
[WhiteElo "2266"]
[BlackElo "1992"]
[TimeControl "180+1"]
[EndTime "11:16:51 PDT"]
[Termination "paulrusan won by checkmate"]

1. e4 {[%clk 0:03:00.9]} 1... c5 {[%clk 0:02:58.4]} 2. b4 {[%clk 0:03:00.5]}
2... cxb4 {[%clk 0:02:49.9]} 3. Bb2 {[%clk 0:03:00.3]} 3... Nf6 {[%clk
0:02:41.4]} 4. e5 {[%clk 0:02:59.6]} 4... Nd5 {[%clk 0:02:41.1]} 5. a3 {[%clk
0:03:00.2]} 5... bxa3 {[%clk 0:02:40.5]} 6. Nxa3 {[%clk 0:02:59.7]} 6... e6
{[%clk 0:02:39]} 7. Nf3 {[%clk 0:02:55.3]} 7... Nc6 {[%clk 0:02:34.6]} 8. c4
{[%clk 0:02:49.7]} 8... Nb6 {[%clk 0:02:34]} 9. Nc2 {[%clk 0:02:44.6]} 9... d6
{[%clk 0:02:29.6]} 10. exd6 {[%clk 0:02:43.9]} 10... Qxd6 {[%clk 0:02:28.9]} 11.
d4 {[%clk 0:02:43.5]} 11... Qd8 {[%clk 0:02:28]} 12. Bd3 {[%clk 0:02:40.4]}
12... Bd7 {[%clk 0:02:19.2]} 13. O-O {[%clk 0:02:37.4]} 13... Qc7 {[%clk
0:02:11.5]} 14. Re1 {[%clk 0:02:30.2]} 14... O-O-O {[%clk 0:02:07.2]} 15. Qe2
{[%clk 0:02:21.2]} 15... Kb8 {[%clk 0:02:01.2]} 16. Rad1 {[%clk 0:01:52.9]}
16... Ka8 {[%clk 0:01:21]} 17. Ne3 {[%clk 0:01:33.9]} 17... Bb4 {[%clk
0:01:16.6]} 18. d5 {[%clk 0:01:26.1]} 18... Nb8 {[%clk 0:00:13.2]} 19. Rf1
{[%clk 0:01:09.8]} 19... f6 {[%clk 0:00:11.2]} 20. Nd4 {[%clk 0:01:01.1]} 20...
e5 {[%clk 0:00:09.1]} 21. Ndf5 {[%clk 0:00:55.5]} 21... Bxf5 {[%clk 0:00:09.4]}
22. Bxf5 {[%clk 0:00:46.1]} 22... Bc5 {[%clk 0:00:09.6]} 23. Rc1 {[%clk
0:00:43]} 23... Na6 {[%clk 0:00:09.1]} 24. Rfd1 {[%clk 0:00:37.2]} 24... Nb8
{[%clk 0:00:07.5]} 25. Be6 {[%clk 0:00:36]} 25... N8d7 {[%clk 0:00:07.1]} 26.
Nf5 {[%clk 0:00:35.3]} 26... Nf8 {[%clk 0:00:06.6]} 27. d6 {[%clk 0:00:26.9]}
27... Qb8 {[%clk 0:00:06]} 28. Bd5 {[%clk 0:00:23.9]} 28... Nfd7 {[%clk
0:00:05.3]} 29. Rd3 {[%clk 0:00:18.3]} 29... g6 {[%clk 0:00:05.1]} 30. Nh6
{[%clk 0:00:15.4]} 30... Bxd6 {[%clk 0:00:05.2]} 31. Nf7 {[%clk 0:00:15.2]}
31... Rhf8 {[%clk 0:00:03.3]} 32. Nxd6 {[%clk 0:00:15.4]} 32... Qxd6 {[%clk
0:00:03.5]} 33. Bxb7+ {[%clk 0:00:15.6]} 33... Kxb7 {[%clk 0:00:04.4]} 34. Rxd6
{[%clk 0:00:15.8]} 34... Kc7 {[%clk 0:00:05.3]} 35. c5 {[%clk 0:00:13.5]} 35...
Rde8 {[%clk 0:00:03.6]} 36. cxb6+ {[%clk 0:00:10.7]} 36... Kxd6 {[%clk
0:00:03.8]} 37. Ba3+ {[%clk 0:00:11.1]} 37... Ke6 {[%clk 0:00:04.5]} 38. Bxf8
{[%clk 0:00:11]} 38... Nxf8 {[%clk 0:00:05.4]} 39. Qc4+ {[%clk 0:00:10.7]} 39...
Ke7 {[%clk 0:00:05.5]} 40. bxa7 {[%clk 0:00:10.6]} 40... Nd7 {[%clk 0:00:05.1]}
41. Qc6 {[%clk 0:00:09.3]} 41... Rc8 {[%clk 0:00:02.7]} 42. Qxc8 {[%clk
0:00:08.9]} 42... Nb6 {[%clk 0:00:03.3]} 43. Qb7+ {[%clk 0:00:08.3]} 43... Kf8
{[%clk 0:00:04.2]} 44. Qxb6 {[%clk 0:00:08.4]} 44... Kg8 {[%clk 0:00:04]} 45.
a8=Q+ {[%clk 0:00:07.2]} 45... Kg7 {[%clk 0:00:04.3]} 46. Qc7+ {[%clk
0:00:07.4]} 46... Kh6 {[%clk 0:00:05.2]} 47. Qf8+ {[%clk 0:00:06.4]} 47... Kg5
{[%clk 0:00:05.5]} 48. Qxh7 {[%clk 0:00:06.7]} 48... Kf5 {[%clk 0:00:05.9]} 49.
g4+ {[%clk 0:00:06.4]} 49... Kg5 {[%clk 0:00:06.1]} 50. Rc4 {[%clk 0:00:06.8]}
50... e4 {[%clk 0:00:05.1]} 51. h4+ {[%clk 0:00:06.8]} 51... Kf4 {[%clk
0:00:05.2]} 52. Qxf6+ {[%clk 0:00:07.2]} 52... Kxg4 {[%clk 0:00:05.7]} 53.
Qhxg6+ {[%clk 0:00:06.9]} 53... Kh3 {[%clk 0:00:06.2]} 54. Qg3# {[%clk
0:00:06.7]} 1-0

[Event "*** SCC Grand Prix: Titled Tuesday Blitz"]
[Site "Chess.com"]
[Date "2020.09.29"]
[Round "7"]
[White "ORS1984"]
[Black "Belka1989"]
[Result "0-1"]
[WhiteElo "2521"]
[BlackElo "2303"]
[TimeControl "180+1"]
[EndTime "11:16:53 PDT"]
[Termination "Belka1989 won by resignation"]

1. e4 {[%clk 0:03:00.9]} 1... c5 {[%clk 0:02:59]} 2. Nf3 {[%clk 0:03:00.9]} 2...
d6 {[%clk 0:02:59.1]} 3. d4 {[%clk 0:03:01]} 3... cxd4 {[%clk 0:03:00]} 4. Qxd4
{[%clk 0:03:01.5]} 4... a6 {[%clk 0:02:59.8]} 5. h3 {[%clk 0:03:00.4]} 5... Nc6
{[%clk 0:02:59.4]} 6. Qe3 {[%clk 0:03:00.5]} 6... g6 {[%clk 0:02:59.4]} 7. Be2
{[%clk 0:02:59.3]} 7... Bg7 {[%clk 0:02:47.6]} 8. O-O {[%clk 0:02:58.3]} 8...
Nf6 {[%clk 0:02:48]} 9. c4 {[%clk 0:02:56.7]} 9... O-O {[%clk 0:02:46.2]} 10.
Rd1 {[%clk 0:02:55.5]} 10... Be6 {[%clk 0:02:28.7]} 11. Nc3 {[%clk 0:02:54.6]}
11... Nd7 {[%clk 0:02:28.9]} 12. Ng5 {[%clk 0:02:25.7]} 12... Nc5 {[%clk
0:02:21.7]} 13. Nxe6 {[%clk 0:02:23.6]} 13... fxe6 {[%clk 0:02:22.6]} 14. Bd2
{[%clk 0:02:09.9]} 14... Bd4 {[%clk 0:02:06.4]} 15. Qh6 {[%clk 0:01:53.8]} 15...
Rxf2 {[%clk 0:02:02.1]} 16. Be3 {[%clk 0:01:53.6]} 16... Bxe3 {[%clk 0:01:56.6]}
17. Qxe3 {[%clk 0:01:54.1]} 17... Rf7 {[%clk 0:01:48.1]} 18. Rab1 {[%clk
0:01:46.5]} 18... a5 {[%clk 0:01:44.8]} 19. b3 {[%clk 0:01:46.1]} 19... Qb6
{[%clk 0:01:31.1]} 20. Bg4 {[%clk 0:01:36.8]} 20... Rf6 {[%clk 0:01:10.4]} 21.
Nb5 {[%clk 0:01:25.6]} 21... h5 {[%clk 0:01:01.4]} 22. Be2 {[%clk 0:01:23.3]}
22... Nd7 {[%clk 0:00:52.5]} 23. Qxb6 {[%clk 0:01:14.4]} 23... Nxb6 {[%clk
0:00:53.4]} 24. Rbc1 {[%clk 0:01:06.9]} 24... Nd7 {[%clk 0:00:51.4]} 25. Bd3
{[%clk 0:00:42.8]} 25... Nce5 {[%clk 0:00:47.7]} 26. Bc2 {[%clk 0:00:40.2]}
26... Nc5 {[%clk 0:00:48.1]} 27. Rd4 {[%clk 0:00:30]} 27... Raf8 {[%clk
0:00:43.2]} 28. a3 {[%clk 0:00:28.1]} 28... Nc6 {[%clk 0:00:42.8]} 29. Rd2
{[%clk 0:00:23.8]} 29... h4 {[%clk 0:00:35.8]} 30. Kh2 {[%clk 0:00:23.2]} 30...
Rf2 {[%clk 0:00:33.1]} 31. Rcd1 {[%clk 0:00:23.2]} 31... e5 {[%clk 0:00:31]} 32.
Kg1 {[%clk 0:00:22.2]} 32... Rxd2 {[%clk 0:00:29.7]} 33. Rxd2 {[%clk 0:00:23.1]}
33... Rf4 {[%clk 0:00:29.1]} 34. Re2 {[%clk 0:00:22.4]} 34... Ne6 {[%clk
0:00:27.1]} 35. Rf2 {[%clk 0:00:16.3]} 35... Ned4 {[%clk 0:00:20.9]} 36. Nxd4
{[%clk 0:00:15.5]} 36... Nxd4 {[%clk 0:00:20.7]} 37. Rxf4 {[%clk 0:00:13.2]}
37... exf4 {[%clk 0:00:21.6]} 38. Bd1 {[%clk 0:00:13.1]} 38... Kg7 {[%clk
0:00:19]} 39. Kf2 {[%clk 0:00:13.1]} 39... Kf6 {[%clk 0:00:18.4]} 40. Ke1 {[%clk
0:00:13.2]} 40... Ke5 {[%clk 0:00:17.6]} 41. Kd2 {[%clk 0:00:09.5]} 41... Kxe4
{[%clk 0:00:17.7]} 42. Kc3 {[%clk 0:00:09.9]} 42... Ke3 {[%clk 0:00:15.9]} 43.
b4 {[%clk 0:00:09.5]} 43... axb4+ {[%clk 0:00:16.8]} 44. axb4 {[%clk 0:00:09]}
44... b6 {[%clk 0:00:15.9]} 45. Bg4 {[%clk 0:00:07.8]} 45... e5 {[%clk 0:00:15]}
46. Be6 {[%clk 0:00:07.3]} 46... e4 {[%clk 0:00:13.9]} 47. Bd5 {[%clk
0:00:07.1]} 47... f3 {[%clk 0:00:13.1]} 48. gxf3 {[%clk 0:00:06.6]} 48... exf3
{[%clk 0:00:14]} 49. c5 {[%clk 0:00:06.5]} 49... dxc5 {[%clk 0:00:13.9]} 50.
bxc5 {[%clk 0:00:06.1]} 50... bxc5 {[%clk 0:00:14.8]} 51. Kc4 {[%clk 0:00:06.1]}
51... f2 {[%clk 0:00:14.7]} 52. Bg2 {[%clk 0:00:06.1]} 52... Nf3 {[%clk
0:00:15]} 53. Kxc5 {[%clk 0:00:05.6]} 53... Nd2 {[%clk 0:00:15.4]} 54. Kd5
{[%clk 0:00:05.1]} 54... f1=Q {[%clk 0:00:14.9]} 55. Bxf1 {[%clk 0:00:05.2]}
55... Nxf1 {[%clk 0:00:15.8]} 0-1

[Event "*** SCC Grand Prix: Titled Tuesday Blitz"]
[Site "Chess.com"]
[Date "2020.09.29"]
[Round "7"]
[White "malakismayil"]
[Black "chessmadara"]
[Result "1-0"]
[WhiteElo "2326"]
[BlackElo "2124"]
[TimeControl "180+1"]
[EndTime "11:16:53 PDT"]
[Termination "malakismayil won on time"]

1. e4 {[%clk 0:03:00.9]} 1... c5 {[%clk 0:02:59.5]} 2. Nf3 {[%clk 0:02:58.8]}
2... Nc6 {[%clk 0:02:59.2]} 3. Bb5 {[%clk 0:02:57.2]} 3... g6 {[%clk 0:02:58.2]}
4. c3 {[%clk 0:02:57.2]} 4... Bg7 {[%clk 0:02:45.5]} 5. d4 {[%clk 0:02:56.9]}
5... cxd4 {[%clk 0:02:45.6]} 6. cxd4 {[%clk 0:02:57.7]} 6... Qb6 {[%clk
0:02:45.4]} 7. Bxc6 {[%clk 0:02:56.4]} 7... dxc6 {[%clk 0:02:22.5]} 8. Nc3
{[%clk 0:02:53.1]} 8... Bg4 {[%clk 0:02:20.5]} 9. Be3 {[%clk 0:02:22.4]} 9...
Qxb2 {[%clk 0:02:15.4]} 10. Rc1 {[%clk 0:02:20.1]} 10... Nf6 {[%clk 0:02:11.3]}
11. O-O {[%clk 0:02:16.5]} 11... O-O {[%clk 0:02:08.4]} 12. h3 {[%clk
0:02:12.7]} 12... Bxf3 {[%clk 0:02:02.7]} 13. Qxf3 {[%clk 0:02:13.6]} 13... Qa3
{[%clk 0:01:47.7]} 14. e5 {[%clk 0:01:51.5]} 14... Nd7 {[%clk 0:01:38.3]} 15.
Rc2 {[%clk 0:01:51.1]} 15... Nb6 {[%clk 0:01:32.9]} 16. Ne4 {[%clk 0:01:48.1]}
16... Nd5 {[%clk 0:01:27.8]} 17. Rb1 {[%clk 0:01:28.3]} 17... Qa4 {[%clk
0:01:10.3]} 18. Qe2 {[%clk 0:01:07.7]} 18... b6 {[%clk 0:01:03.6]} 19. Rbc1
{[%clk 0:00:59.7]} 19... Rac8 {[%clk 0:01:00.7]} 20. Rc4 {[%clk 0:00:51.7]}
20... Qa6 {[%clk 0:00:56.1]} 21. Qc2 {[%clk 0:00:52]} 21... Nxe3 {[%clk
0:00:51.5]} 22. fxe3 {[%clk 0:00:50.6]} 22... c5 {[%clk 0:00:41.6]} 23. Kh1
{[%clk 0:00:46]} 23... Qb7 {[%clk 0:00:31.9]} 24. Ng5 {[%clk 0:00:39.6]} 24...
Bh6 {[%clk 0:00:23.6]} 25. h4 {[%clk 0:00:35.6]} 25... Qd5 {[%clk 0:00:16.7]}
26. Qf2 {[%clk 0:00:29.8]} 26... Rcd8 {[%clk 0:00:15.2]} 27. dxc5 {[%clk
0:00:23.1]} 27... Qxe5 {[%clk 0:00:15.4]} 28. Nf3 {[%clk 0:00:22.8]} 28... Qh5
{[%clk 0:00:14.2]} 29. c6 {[%clk 0:00:21.4]} 29... Qb5 {[%clk 0:00:11.9]} 30. c7
{[%clk 0:00:20.7]} 30... Rc8 {[%clk 0:00:12]} 31. a4 {[%clk 0:00:20.8]} 31...
Qb3 {[%clk 0:00:11.1]} 32. e4 {[%clk 0:00:19.7]} 32... Bxc1 {[%clk 0:00:09.2]}
33. Rxc1 {[%clk 0:00:20.6]} 33... Qxa4 {[%clk 0:00:08.2]} 34. Qe3 {[%clk
0:00:18.8]} 34... Qd7 {[%clk 0:00:07.9]} 35. Qf4 {[%clk 0:00:18.4]} 35... Qe6
{[%clk 0:00:07.8]} 36. h5 {[%clk 0:00:17.3]} 36... Qf6 {[%clk 0:00:07.9]} 37.
Qh6 {[%clk 0:00:15.5]} 37... Qg7 {[%clk 0:00:07.7]} 38. Qf4 {[%clk 0:00:14.9]}
38... Qf6 {[%clk 0:00:07.7]} 39. Qh6 {[%clk 0:00:13.7]} 39... a5 {[%clk
0:00:06.9]} 40. e5 {[%clk 0:00:12.7]} 40... Qg7 {[%clk 0:00:06.9]} 41. Qf4
{[%clk 0:00:12.2]} 41... h6 {[%clk 0:00:05.7]} 42. e6 {[%clk 0:00:06.8]} 42...
fxe6 {[%clk 0:00:03.9]} 43. Qe4 {[%clk 0:00:07.2]} 43... g5 {[%clk 0:00:03.6]}
44. Qxe6+ {[%clk 0:00:06.9]} 44... Qf7 {[%clk 0:00:03.5]} 45. Qxh6 {[%clk
0:00:06.5]} 45... g4 {[%clk 0:00:02.9]} 46. Qg5+ {[%clk 0:00:05.5]} 46... Qg7
{[%clk 0:00:03.2]} 47. Qd5+ {[%clk 0:00:05.2]} 47... Kh8 {[%clk 0:00:02.7]} 48.
Ng5 {[%clk 0:00:03.6]} 48... a4 {[%clk 0:00:01.8]} 49. Ne6 {[%clk 0:00:03.2]}
49... Kh7 {[%clk 0:00:02.1]} 50. Nxg7 {[%clk 0:00:03]} 50... Kxg7 {[%clk
0:00:03]} 51. h6+ {[%clk 0:00:03]} 51... Kh7 {[%clk 0:00:02.8]} 52. Qe6 {[%clk
0:00:03.9]} 1-0

[Event "*** SCC Grand Prix: Titled Tuesday Blitz"]
[Site "Chess.com"]
[Date "2020.09.29"]
[Round "7"]
[White "eljanov"]
[Black "RaunakSadhwani2005"]
[Result "1/2-1/2"]
[WhiteElo "2816"]
[BlackElo "2931"]
[TimeControl "180+1"]
[EndTime "11:16:56 PDT"]
[Termination "Game drawn by repetition"]

1. e4 {[%clk 0:03:00.9]} 1... e5 {[%clk 0:03:00.1]} 2. Nf3 {[%clk 0:03:00.9]}
2... Nc6 {[%clk 0:03:00.5]} 3. Bc4 {[%clk 0:03:01.5]} 3... Nf6 {[%clk
0:02:56.3]} 4. d3 {[%clk 0:03:01.9]} 4... Bc5 {[%clk 0:02:56.6]} 5. c3 {[%clk
0:03:02]} 5... d6 {[%clk 0:02:56.1]} 6. O-O {[%clk 0:03:02.1]} 6... a6 {[%clk
0:02:55.4]} 7. Re1 {[%clk 0:03:02.3]} 7... Ba7 {[%clk 0:02:51.6]} 8. a4 {[%clk
0:03:02.3]} 8... O-O {[%clk 0:02:47.9]} 9. h3 {[%clk 0:03:00.7]} 9... Be6 {[%clk
0:02:47.3]} 10. Bxe6 {[%clk 0:03:00.3]} 10... fxe6 {[%clk 0:02:48.2]} 11. b4
{[%clk 0:02:59.8]} 11... Nh5 {[%clk 0:02:43]} 12. Be3 {[%clk 0:02:59.5]} 12...
Qf6 {[%clk 0:02:37]} 13. Bxa7 {[%clk 0:02:54.9]} 13... Rxa7 {[%clk 0:02:37.8]}
14. Kh2 {[%clk 0:02:36.6]} 14... Ne7 {[%clk 0:02:28.4]} 15. Nbd2 {[%clk
0:02:33.7]} 15... Qh6 {[%clk 0:02:27.6]} 16. Nf1 {[%clk 0:02:31.3]} 16... Nf4
{[%clk 0:02:22.8]} 17. Ng3 {[%clk 0:02:25.5]} 17... Raa8 {[%clk 0:02:14.2]} 18.
d4 {[%clk 0:02:25.3]} 18... Neg6 {[%clk 0:02:09.7]} 19. Qd2 {[%clk 0:02:01.1]}
19... Rf7 {[%clk 0:01:57.9]} 20. dxe5 {[%clk 0:01:46.8]} 20... Nxe5 {[%clk
0:01:43.2]} 21. Nxe5 {[%clk 0:01:46.2]} 21... dxe5 {[%clk 0:01:44.1]} 22. Rad1
{[%clk 0:01:36.4]} 22... Raf8 {[%clk 0:01:44.3]} 23. Qe3 {[%clk 0:01:36.6]}
23... g5 {[%clk 0:01:44.4]} 24. f3 {[%clk 0:01:36.1]} 24... Qg7 {[%clk
0:01:33.6]} 25. Ne2 {[%clk 0:01:13.4]} 25... h5 {[%clk 0:01:31.4]} 26. Nxf4
{[%clk 0:01:12.2]} 26... gxf4 {[%clk 0:01:24.8]} 27. Qf2 {[%clk 0:01:10.2]}
27... Qf6 {[%clk 0:01:25.1]} 28. Rd2 {[%clk 0:01:06.4]} 28... Rg7 {[%clk
0:01:17.8]} 29. Red1 {[%clk 0:01:06.6]} 29... Kh7 {[%clk 0:01:13.1]} 30. Rd7
{[%clk 0:01:06.2]} 30... Rg8 {[%clk 0:01:13.4]} 31. a5 {[%clk 0:01:00.4]} 31...
Kh6 {[%clk 0:01:12.1]} 32. c4 {[%clk 0:00:56.3]} 32... Qg5 {[%clk 0:01:04.8]}
33. Rxg7 {[%clk 0:00:54.8]} 33... Rxg7 {[%clk 0:01:05.7]} 34. b5 {[%clk
0:00:52.4]} 34... h4 {[%clk 0:01:04.4]} 35. Kg1 {[%clk 0:00:41.8]} 35... Rg8
{[%clk 0:00:52.3]} 36. Rd2 {[%clk 0:00:39.9]} 36... Rd8 {[%clk 0:00:43.9]} 37.
b6 {[%clk 0:00:29.1]} 37... Rxd2 {[%clk 0:00:30.9]} 38. Qxd2 {[%clk 0:00:29.1]}
38... cxb6 {[%clk 0:00:31.8]} 39. axb6 {[%clk 0:00:28.7]} 39... Qe7 {[%clk
0:00:31.9]} 40. Kh2 {[%clk 0:00:27.5]} 40... Kg6 {[%clk 0:00:28.1]} 41. Qa5
{[%clk 0:00:22.6]} 41... Qd6 {[%clk 0:00:25.1]} 42. c5 {[%clk 0:00:20.1]} 42...
Qc6 {[%clk 0:00:25.4]} 43. Qc3 {[%clk 0:00:15.8]} 43... Kf6 {[%clk 0:00:17.5]}
44. Qe1 {[%clk 0:00:16]} 44... Kg5 {[%clk 0:00:14.9]} 45. Qc3 {[%clk 0:00:16.4]}
45... Kf6 {[%clk 0:00:15.1]} 46. Qe1 {[%clk 0:00:16.6]} 46... Qxc5 {[%clk
0:00:10.4]} 47. Qxh4+ {[%clk 0:00:16.8]} 47... Kg6 {[%clk 0:00:09.8]} 48. Qg4+
{[%clk 0:00:17.1]} 48... Kf7 {[%clk 0:00:10.1]} 49. Qh5+ {[%clk 0:00:17]} 49...
Kg7 {[%clk 0:00:09.6]} 50. Qg5+ {[%clk 0:00:17]} 50... Kf7 {[%clk 0:00:09.9]}
51. h4 {[%clk 0:00:17.5]} 51... Qxb6 {[%clk 0:00:08.8]} 52. h5 {[%clk 0:00:18]}
52... Qf2 {[%clk 0:00:08.2]} 53. Qg6+ {[%clk 0:00:14.7]} 53... Ke7 {[%clk
0:00:06.4]} 54. Qg7+ {[%clk 0:00:10.7]} 54... Ke8 {[%clk 0:00:06.5]} 55. Qg8+
{[%clk 0:00:08.3]} 55... Ke7 {[%clk 0:00:07]} 56. Qg7+ {[%clk 0:00:07.3]} 56...
Kd6 {[%clk 0:00:07.5]} 57. h6 {[%clk 0:00:07.2]} 57... Qh4+ {[%clk 0:00:07.7]}
58. Kg1 {[%clk 0:00:07.3]} 58... Qe1+ {[%clk 0:00:08.1]} 59. Kh2 {[%clk
0:00:07.8]} 59... Qh4+ {[%clk 0:00:08.2]} 60. Kg1 {[%clk 0:00:08.2]} 60... Qe1+
{[%clk 0:00:09.1]} 61. Kh2 {[%clk 0:00:08.6]} 61... Qh4+ {[%clk 0:00:09.8]}
1/2-1/2

[Event "*** SCC Grand Prix: Titled Tuesday Blitz"]
[Site "Chess.com"]
[Date "2020.09.29"]
[Round "7"]
[White "tdf98pantani"]
[Black "Sychev_Klementy"]
[Result "1/2-1/2"]
[WhiteElo "2633"]
[BlackElo "2875"]
[TimeControl "180+1"]
[EndTime "11:17:04 PDT"]
[Termination "Game drawn - insufficient material"]

1. e4 {[%clk 0:03:00.9]} 1... d6 {[%clk 0:02:58.5]} 2. d4 {[%clk 0:03:00.6]}
2... Nf6 {[%clk 0:02:58.9]} 3. Nc3 {[%clk 0:03:00.7]} 3... g6 {[%clk 0:02:59.3]}
4. Be3 {[%clk 0:02:59.9]} 4... a6 {[%clk 0:02:55.7]} 5. Nf3 {[%clk 0:02:59.3]}
5... Bg7 {[%clk 0:02:53.5]} 6. Qd2 {[%clk 0:02:59.3]} 6... O-O {[%clk
0:02:40.4]} 7. Bh6 {[%clk 0:02:54.3]} 7... Nc6 {[%clk 0:02:36]} 8. O-O-O {[%clk
0:02:45.5]} 8... b5 {[%clk 0:02:21.9]} 9. Bd3 {[%clk 0:02:42.3]} 9... e5 {[%clk
0:02:10.2]} 10. Bxg7 {[%clk 0:02:39.7]} 10... Kxg7 {[%clk 0:02:10.1]} 11. Ne2
{[%clk 0:02:27.2]} 11... Bg4 {[%clk 0:02:04.2]} 12. Qc3 {[%clk 0:02:22.5]} 12...
Bxf3 {[%clk 0:01:37.1]} 13. gxf3 {[%clk 0:02:22]} 13... Nxd4 {[%clk 0:01:16]}
14. Nxd4 {[%clk 0:02:21.7]} 14... exd4 {[%clk 0:01:16.9]} 15. Qxd4 {[%clk
0:02:22.1]} 15... c5 {[%clk 0:01:17.3]} 16. Qc3 {[%clk 0:02:16.7]} 16... Qe7
{[%clk 0:01:10.5]} 17. Rhe1 {[%clk 0:02:08.3]} 17... Qe5 {[%clk 0:01:04.6]} 18.
Qxe5 {[%clk 0:01:51.6]} 18... dxe5 {[%clk 0:01:03.3]} 19. a4 {[%clk 0:01:50.5]}
19... Rab8 {[%clk 0:00:55.5]} 20. axb5 {[%clk 0:01:42.2]} 20... axb5 {[%clk
0:00:56.4]} 21. Bf1 {[%clk 0:01:41.8]} 21... Rb6 {[%clk 0:00:44.4]} 22. c3
{[%clk 0:01:28.8]} 22... c4 {[%clk 0:00:40.1]} 23. Kc2 {[%clk 0:01:26.2]} 23...
Rc8 {[%clk 0:00:37.4]} 24. Bh3 {[%clk 0:01:22.2]} 24... Rc7 {[%clk 0:00:35.4]}
25. f4 {[%clk 0:01:07.8]} 25... exf4 {[%clk 0:00:31.5]} 26. e5 {[%clk 0:01:08]}
26... Ng8 {[%clk 0:00:23.1]} 27. Rd6 {[%clk 0:01:05.8]} 27... Rb8 {[%clk
0:00:19.8]} 28. e6 {[%clk 0:00:51.3]} 28... f5 {[%clk 0:00:18.8]} 29. Bg2 {[%clk
0:00:30.6]} 29... Ne7 {[%clk 0:00:17.6]} 30. Rd7 {[%clk 0:00:27.7]} 30... Rxd7
{[%clk 0:00:12.4]} 31. exd7 {[%clk 0:00:27.6]} 31... Kf7 {[%clk 0:00:11.2]} 32.
Re5 {[%clk 0:00:26.4]} 32... Rd8 {[%clk 0:00:09.7]} 33. Rxb5 {[%clk 0:00:22.9]}
33... Rxd7 {[%clk 0:00:09.8]} 34. Bf1 {[%clk 0:00:23.6]} 34... Kf6 {[%clk
0:00:07.6]} 35. Bxc4 {[%clk 0:00:23.7]} 35... g5 {[%clk 0:00:08.1]} 36. Rb6+
{[%clk 0:00:22.7]} 36... Kg7 {[%clk 0:00:07.5]} 37. b4 {[%clk 0:00:21.2]} 37...
h5 {[%clk 0:00:07.7]} 38. Be6 {[%clk 0:00:18.6]} 38... Rc7 {[%clk 0:00:07]} 39.
Kb3 {[%clk 0:00:18]} 39... g4 {[%clk 0:00:07.3]} 40. c4 {[%clk 0:00:18.2]} 40...
h4 {[%clk 0:00:07.5]} 41. Rd6 {[%clk 0:00:17.3]} 41... g3 {[%clk 0:00:07.1]} 42.
hxg3 {[%clk 0:00:17.7]} 42... hxg3 {[%clk 0:00:07.3]} 43. fxg3 {[%clk
0:00:17.9]} 43... fxg3 {[%clk 0:00:07.7]} 44. c5 {[%clk 0:00:17.7]} 44... f4
{[%clk 0:00:06.9]} 45. Bg4 {[%clk 0:00:11.7]} 45... Ng6 {[%clk 0:00:05.3]} 46.
Rd2 {[%clk 0:00:10.7]} 46... Ne5 {[%clk 0:00:05.1]} 47. Bh3 {[%clk 0:00:09.9]}
47... f3 {[%clk 0:00:05.1]} 48. Rd5 {[%clk 0:00:08.5]} 48... g2 {[%clk 0:00:04]}
49. Rd1 {[%clk 0:00:07.7]} 49... Ng6 {[%clk 0:00:04.3]} 50. Rg1 {[%clk
0:00:06.1]} 50... Nf4 {[%clk 0:00:04.4]} 51. Bxg2 {[%clk 0:00:06.5]} 51... fxg2
{[%clk 0:00:03.1]} 52. Kc4 {[%clk 0:00:07.4]} 52... Kf6 {[%clk 0:00:03.4]} 53.
b5 {[%clk 0:00:07.4]} 53... Rg7 {[%clk 0:00:03.6]} 54. b6 {[%clk 0:00:07.7]}
54... Ne2 {[%clk 0:00:03.6]} 55. Rxg2 {[%clk 0:00:06.9]} 55... Rxg2 {[%clk
0:00:03.8]} 56. b7 {[%clk 0:00:07.8]} 56... Rg4+ {[%clk 0:00:03.5]} 57. Kb5
{[%clk 0:00:07.6]} 57... Nd4+ {[%clk 0:00:03.1]} 58. Kb6 {[%clk 0:00:08]} 58...
Rg8 {[%clk 0:00:02.6]} 59. c6 {[%clk 0:00:08.1]} 59... Ne6 {[%clk 0:00:02.1]}
60. c7 {[%clk 0:00:08.5]} 60... Nxc7 {[%clk 0:00:02.3]} 61. Kxc7 {[%clk
0:00:09.4]} 61... Ke7 {[%clk 0:00:02.7]} 62. b8=Q {[%clk 0:00:09.5]} 62... Rxb8
{[%clk 0:00:03.2]} 63. Kxb8 {[%clk 0:00:09.9]} 1/2-1/2